bitfinex-derivatives/quotes_SOLF0:USTF0_20240815
["timestamp","ask_amount","ask_price","bid_price","bid_amount"]
[1723712823913,33.55,143.08,142.98,33.55]
[1723712824112,33.55,143.06,142.97,33.55]
[1723712824611,0.04512676,143.03,143.0,0.05318419]
[1723712825212,3.54072676,143.03,143.0,3.54928419]
[1723712825813,3.4959,143.02,143.0,0.05318419]
[1723712826312,3.496,143.01,143.0,0.05318419]
[1723712826519,1.2485,143.02,143.0,0.05318419]
[1723712826813,1.2485,143.02,143.0,3.54948419]
[1723712827513,0.04512676,143.03,143.0,0.05318419]
[1723712828313,0.04512676,143.03,143.01,3.496]
[1723712828615,0.04512676,143.03,143.0,0.05318419]
[1723712828814,0.04512676,143.03,143.02,3.4958]
[1723712829413,0.04512676,143.03,143.01,3.496]
[1723712829614,0.04512676,143.03,143.0,0.05318419]
[1723712829819,3.54082676,143.03,143.0,0.05318419]
[1723712830117,33.55,143.02,142.92,38.59]
[1723712830412,34.7728,143.02,142.92,38.59]
[1723712830613,33.55,143.0,142.92,38.59]
[1723712831007,3.4965,142.99,142.92,38.59]
[1723712831410,0.04654641,142.97,142.95,0.04449509]
[1723712832015,0.04654641,142.97,142.96,3.4972]
[1723712833320,0.04654641,142.97,142.95,3.54189509]
[1723712834618,0.04654641,142.97,142.96,3.4972]
[1723712836017,0.04654641,142.97,142.96,45.4772]
[1723712836418,0.04654641,142.97,142.96,3.4972]
[1723712839730,0.04654641,142.97,142.95,0.04449509]
[1723712839731,0.04654641,142.97,142.95,3.54189509]
[1723712840035,4.641e-05,142.97,142.96,41.98]
[1723712840328,1.2612,143.03,142.96,41.98]
[1723712840524,1.2612,143.03,142.94,10.52226069]
[1723712840525,1.2612,143.03,142.98,41.98]
[1723712840728,1.2612,143.03,143.02,3.4958]
[1723712842232,0.05192886,143.04,143.01,0.04631442]
[1723712842233,0.05192886,143.04,143.03,3.4955]
[1723712842635,0.05192886,143.04,143.01,0.04631442]
[1723712843335,0.05192886,143.04,143.02,3.4956]
[1723712844529,0.05192886,143.04,143.01,3.54221442]
[1723712845330,0.05192886,143.04,143.02,3.4957]
[1723712846734,0.05192886,143.04,143.01,0.04631442]
[1723712846932,42.03192886,143.04,143.01,0.04631442]
[1723712847236,42.03192886,143.04,142.94,5.04]
[1723712847539,3.4958,143.02,142.99,3.4965]
[1723712847931,3.4956,143.03,143.0,3.4962]
[1723712848133,1.3027,143.02,143.0,3.4962]
[1723712848331,1.3027,143.02,143.0,3.541957]
[1723712850132,1.3027,143.02,143.0,0.045757]
[1723712850735,4.7985,143.02,143.0,0.045757]
[1723712850931,4.7985,143.02,142.98,3.4966]
[1723712851135,1.3027,143.02,142.98,3.4966]
[1723712851441,1.3003,143.01,142.98,3.4966]
[1723712851628,1.3003,143.01,142.97,3.4969]
[1723712852032,34.8903,143.01,142.97,3.4969]
[1723712852340,0.05244064,143.0,142.98,0.05167398]
[1723712852533,3.54874064,143.0,142.97,3.4969]
[1723712853139,0.05244064,143.0,142.97,3.4969]
[1723712853339,0.05244064,143.0,142.98,3.4967]
[1723712853532,0.05244064,143.0,142.94,5.04]
[1723712853728,0.05244064,143.0,142.98,0.04997636]
[1723712854042,0.05244064,143.0,142.98,3.4965]
[1723712854239,0.05244064,143.0,142.98,3.55008752]
[1723712855429,0.05244064,143.0,142.99,3.4965]
[1723712858437,3.4965,142.99,142.98,0.05358752]
[1723712858845,3.56901439,143.0,142.98,0.05358752]
[1723712859137,7.06541439,143.0,142.98,0.05358752]
[1723712859641,3.4965,142.99,142.96,3.4972]
[1723712860240,3.4969,142.98,142.95,3.4974]
[1723712860434,3.51657375,143.0,142.95,3.4974]
[1723712860639,33.59,142.99,142.95,3.4974]
[1723712860835,1.3027,143.02,142.97,33.59]
[1723712861037,3.53360477,143.08,142.97,33.59]
[1723712861038,0.04405742,142.99,142.97,33.59]
[1723712861345,0.04405742,142.99,142.98,3.4967]
[1723712861545,4.9,143.06,142.97,33.59]
[1723712861938,0.04786884,143.0,142.97,33.64159721]
[1723712862646,33.59,143.05,142.96,38.49]
[1723712862841,0.04767867,143.0,142.97,0.04456857]
[1723712863043,0.04767867,143.0,142.99,3.4963]
[1723712864140,0.04767867,143.0,142.98,3.4967]
[1723712864448,0.04767867,143.0,142.97,0.04456857]
[1723712864742,3.54397867,143.0,142.97,0.04456857]
[1723712865441,4.89047867,143.0,142.97,0.04456857]
[1723712865642,8.35823482,143.0,142.97,0.04456857]
[1723712865841,3.4965,142.99,142.97,0.04456857]
[1723712868243,4.86193482,143.0,142.97,0.04456857]
[1723712868551,8.35823482,143.0,142.97,0.04456857]
[1723712868851,4.86193482,143.0,142.97,0.04456857]
[1723712869951,3.4965,142.99,142.97,0.04456857]
[1723712870845,3.4967,142.98,142.97,0.04456857]
[1723712874251,1.39417867,143.0,142.97,0.04456857]
[1723712874451,1.39417867,143.0,142.97,3.54146857]
[1723712875251,4.89067867,143.0,142.97,3.54146857]
[1723712875451,4.94811175,143.0,142.97,0.04456857]
[1723712875748,3.4967,142.99,142.97,0.04456857]
[1723712876345,3.4967,142.98,142.97,0.04456857]
[1723712877556,3.4974,142.96,142.88,72.35414911]
[1723712877848,3.4974,142.96,142.91,3.4984]
[1723712878043,3.4975,142.95,142.88,47.1712]
[1723712878242,3.4975,142.95,142.89,17.43764251]
[1723712878445,3.4975,142.95,142.92,3.4981]
[1723712878645,0.04529785,142.93,142.92,3.4981]
[1723712879851,0.04529785,142.93,142.88,41.97]
[1723712880053,0.04529785,142.93,142.89,17.43881968]
[1723712880549,0.04529785,142.93,142.88,41.97]
[1723712880757,0.04529785,142.93,142.91,3.4983]
[1723712881149,0.04529785,142.93,142.88,41.97]
[1723712881354,0.04529785,142.93,142.89,17.44152393]
[1723712881555,0.04529785,142.93,142.92,3.4982]
[1723712884352,0.04529785,142.93,142.91,3.4983]
[1723712884659,0.04529785,142.93,142.86,33.6]
[1723712884857,0.04529785,142.93,142.87,17.44218108]
[1723712885660,3.54329785,142.93,142.9,3.4985]
[1723712886655,0.04529785,142.93,142.85,33.6]
[1723712886956,0.04529785,142.93,142.86,17.4489001]
[1723712887146,3.4985,142.91,142.88,3.499]
[1723712887552,33.6,142.92,142.84,3.55877634]
[1723712887860,3.4989,142.9,142.85,17.45599627]
[1723712888051,0.05302628,142.89,142.83,33.6]
[1723712888262,0.05302628,142.89,142.87,3.4993]
[1723712889355,3.55202628,142.89,142.87,3.4993]
[1723712889859,3.4993,142.88,142.82,33.6]
[1723712890155,33.6,142.89,142.84,3.5]
[1723712890359,0.04898662,142.86,142.84,3.5]
[1723712890750,0.04898662,142.86,142.85,3.4999]
[1723712895560,0.04898662,142.86,142.81,33.6]
[1723712896058,0.04898662,142.86,142.85,3.4999]
[1723712899658,4.9,142.92,142.89,3.4987]
[1723712900055,8.3982,142.92,142.89,3.4987]
[1723712900762,3.4986,142.91,142.88,3.4991]
[1723712900969,3.4986,142.91,142.89,0.05020416]
[1723712902266,3.4987,142.9,142.89,0.05020416]
[1723712903271,8.3986,142.91,142.89,0.05020416]
[1723712904965,3.4987,142.9,142.89,0.05020416]
[1723712905966,8.3986,142.91,142.89,0.05020416]
[1723712906660,8.3986,142.91,142.89,3.54910416]
[1723712907162,4.9,142.91,142.89,3.54910416]
[1723712907960,8.44376681,142.92,142.89,3.54910416]
[1723712909562,11.99674294,142.92,142.89,3.54910416]
[1723712909761,3.4985,142.91,142.89,3.54910416]
[1723712909956,3.4985,142.91,142.89,0.05020416]
[1723712910162,3.4987,142.9,142.89,0.05020416]
[1723712910670,8.49844294,142.92,142.89,0.05020416]
[1723712910963,3.4985,142.91,142.89,0.05020416]
[1723712911467,8.3985,142.91,142.89,0.05020416]
[1723712912571,4.9,142.91,142.89,3.54910416]
[1723712913872,21.87376681,142.92,142.89,3.54910416]
[1723712914365,21.87376681,142.92,142.89,0.05020416]
[1723712915079,13.43,142.9,142.89,0.05020416]
[1723712915666,16.9287,142.9,142.89,0.05020416]
[1723712915967,41.8487,142.9,142.89,0.05020416]
[1723712920377,37.0887,142.9,142.89,0.05020416]
[1723712920573,41.8487,142.9,142.89,0.05020416]
[1723712921970,3.4986,142.91,142.89,0.05020416]
[1723712922170,4.76,142.9,142.89,0.05020416]
[1723712926478,3.4986,142.91,142.89,0.05020416]
[1723712926676,4.76,142.91,142.89,3.54900416]
[1723712928286,3.4987,142.9,142.89,0.05020416]
[1723712928577,37.0887,142.9,142.89,0.05020416]
[1723712928974,33.59,142.9,142.89,0.05020416]
[1723712929582,37.0887,142.9,142.89,0.05020416]
[1723712933279,33.59,142.9,142.89,0.05020416]
[1723712935983,13.43,142.9,142.89,0.05020416]
[1723712940280,18.19,142.91,142.89,3.54910416]
[1723712940887,21.6885,142.91,142.89,0.05020416]
[1723712941977,18.19,142.91,142.89,0.05020416]
[1723712942179,13.43,142.91,142.89,0.05020416]
[1723712942378,0.04546681,142.92,142.89,0.05020416]
[1723712942988,0.04546681,142.92,142.91,3.4985]
[1723712946688,0.04546681,142.92,142.91,16.9285]
[1723712946889,19.3037,142.99,142.92,13.43]
[1723712947090,22.8002,142.99,142.92,13.43]
[1723712947290,14.7237,142.99,142.97,3.497]
[1723712948081,14.77647565,142.99,142.97,3.54446254]
[1723712950095,0.05277565,142.99,142.98,3.4967]
[1723712950487,13.48277565,142.99,142.66,119.8028885]
[1723712950686,13.48277565,142.99,142.9,13.43]
[1723712950687,13.43,142.96,142.9,13.43]
[1723712951584,0.04896044,142.94,142.92,0.05266287]
[1723712951992,0.04896044,142.94,142.92,3.55076287]
[1723712954596,0.04896044,142.94,142.93,3.498]
[1723712957399,0.04896044,142.94,142.93,16.928]
[1723712958603,1.2801,142.99,142.96,3.497]
[1723712958802,4.7766,142.99,142.96,3.497]
[1723712959206,13.43,142.98,142.95,3.4973]
[1723712959505,16.9268,142.98,142.93,18.01]
[1723712959707,16.97942617,142.98,142.95,0.05021936]
[1723712960411,16.97942617,142.98,142.95,3.54751936]
[1723712960603,3.54942617,142.98,142.95,3.54751936]
[1723712962309,0.05262617,142.98,142.95,0.05021936]
[1723712962698,0.05262617,142.98,142.96,3.4971]
[1723712963099,0.05262617,142.98,142.95,0.05021936]
[1723712963307,0.05262617,142.98,142.96,3.4972]
[1723712964218,0.05262617,142.98,142.95,0.05021936]
[1723712964412,13.48262617,142.98,142.95,0.05021936]
[1723712964718,3.4971,142.97,142.95,0.05021936]
[1723712967120,3.4971,142.97,142.95,3.54771936]
[1723712967824,3.54942617,142.98,142.95,0.05021936]
[1723712968117,0.05262617,142.98,142.95,0.05021936]
[1723712968419,0.05262617,142.98,142.96,3.4971]
[1723712970722,0.05262617,142.98,142.97,3.497]
[1723712971815,0.05262617,142.98,142.96,3.4971]
[1723712972018,13.48262617,142.98,142.95,0.05021936]
[1723712972223,13.43,142.97,142.95,0.05021936]
[1723712973121,1.2826,142.96,142.88,13.43]
[1723712973325,13.43,142.94,142.88,18.01]
[1723712973693,13.43,142.94,142.88,4.58]
[1723712973923,13.43,142.94,142.86,13.43]
[1723712973924,13.43,142.93,142.86,13.43]
[1723712974126,16.9282,142.93,142.86,13.43]
[1723712974317,0.04565074,142.91,142.88,0.04561783]
[1723712974918,0.04565074,142.91,142.9,3.4987]
[1723712977723,0.04565074,142.91,142.89,3.4988]
[1723712978224,0.04565074,142.91,142.9,3.4987]
[1723712980822,0.04565074,142.91,142.89,3.4988]
[1723712981121,0.04565074,142.91,142.88,0.04561783]
[1723712981523,0.04565074,142.91,142.89,3.4988]
[1723712981724,0.04565074,142.91,142.88,0.04561783]
[1723712981928,13.43,142.9,142.88,0.04561783]
[1723712982228,16.9289,142.9,142.88,0.04561783]
[1723712983431,3.4989,142.9,142.88,0.04561783]
[1723712986535,3.4987,142.9,142.88,0.04561783]
[1723712988238,16.9287,142.9,142.88,0.04561783]
[1723712997447,3.499,142.89,142.88,0.04561783]
[1723712997950,16.9288,142.9,142.88,0.04561783]
[1723712998652,14.72715074,142.91,142.88,0.04561783]
[1723712999448,3.4987,142.9,142.88,3.54471783]
[1723713000138,4.79585074,142.91,142.88,3.54471783]
[1723713000345,0.04565074,142.91,142.88,0.04561783]
[1723713001439,0.04565074,142.91,142.89,3.4988]
[1723713002039,0.04565074,142.91,142.9,3.4987]
[1723713004248,13.47565074,142.91,142.88,0.04561783]
[1723713004444,13.43,142.89,142.88,0.04561783]
[1723713004640,13.43,142.9,142.88,0.04561783]
[1723713005044,3.54425074,142.91,142.88,0.04561783]
[1723713005244,16.97425074,142.91,142.88,0.04561783]
[1723713005551,13.43,142.89,142.88,0.04561783]
[1723713005940,16.929,142.89,142.88,0.04561783]
[1723713006848,18.2847,142.89,142.88,0.04561783]
[1723713007348,22.7247,142.89,142.88,0.04561783]
[1723713007549,3.4995,142.87,142.83,3.5003]
[1723713007755,13.43,142.86,142.83,3.5003]
[1723713007951,13.43,142.86,142.8,17.87]
[1723713008247,5.7957,142.89,142.83,13.43]
[1723713008452,4.44,142.9,142.84,13.43]
[1723713008649,4.44,142.9,142.87,3.4993]
[1723713009152,3.4983,142.92,142.89,3.4989]
[1723713009854,0.05122699,142.9,142.89,3.4989]
[1723713018055,6.975,142.98,142.89,13.43]
[1723713018357,3.4971,142.97,142.92,13.43]
[1723713018555,3.4971,142.97,142.94,3.4976]
[1723713018756,13.43,142.98,142.94,3.4976]
[1723713019058,8.3519,142.99,142.96,3.4971]
[1723713019356,0.0456769,142.97,142.96,3.4971]
[1723713022561,0.0456769,142.97,142.95,0.04476775]
[1723713023757,0.0456769,142.97,142.96,3.4972]
[1723713028163,0.0456769,142.97,142.96,16.9272]
[1723713028366,0.0001769,142.97,142.96,21.3472]
[1723713032655,2.653,143.03,143.01,3.4959]
[1723713033558,6.1485,143.03,143.0,3.4961]
[1723713034060,6.19859857,143.03,143.01,0.04832312]
[1723713034260,3.4958,143.02,143.01,0.04832312]
[1723713034962,16.13309857,143.03,142.85,34.9795]
[1723713035155,13.43,142.98,142.92,17.85]
[1723713035360,13.43,142.98,142.94,3.4975]
[1723713035661,3.497,142.97,142.92,21.28275753]
[1723713036059,0.05107406,142.96,142.93,0.04491538]
[1723713036366,13.48107406,142.96,142.93,0.04491538]
[1723713036667,13.43,142.95,142.93,0.04491538]
[1723713037060,16.9277,142.95,142.93,0.04491538]
[1723713039963,16.97837406,142.96,142.93,0.04491538]
[1723713040269,0.05107406,142.96,142.93,0.04491538]
[1723713041264,13.48107406,142.96,142.93,0.04491538]
[1723713041664,3.4976,142.95,142.93,0.04491538]
[1723713042368,3.54827406,142.96,142.93,3.54261538]
[1723713042664,0.05107406,142.96,142.93,0.04491538]
[1723713042870,0.05107406,142.96,142.94,3.4977]
[1723713044564,0.05107406,142.96,142.95,3.4975]
[1723713045567,0.05107406,142.96,142.94,3.4977]
[1723713048670,3.54827406,142.96,142.94,3.4977]
[1723713049174,3.54827406,142.96,142.93,3.54271538]
[1723713049376,3.54827406,142.96,142.93,0.04491538]
[1723713050681,3.54827406,142.96,142.94,3.4977]
[1723713050883,0.05107406,142.96,142.94,3.4977]
[1723713051676,0.05107406,142.96,142.95,3.4975]
[1723713060284,1.2447,143.01,142.99,3.4964]
[1723713061378,1.2447,143.01,142.99,3.54135855]
[1723713061578,1.29804036,143.01,143.0,3.4963]
[1723713061783,0.05334036,143.01,143.0,3.4963]
[1723713063684,0.05334036,143.01,143.0,16.9263]
[1723713068788,2.4878,143.07,143.05,3.495]
[1723713069191,2.4878,143.07,143.03,13.43]
[1723713069885,2.4878,143.07,143.05,3.4948]
[1723713070287,0.04855648,143.06,143.04,3.54155091]
[1723713070487,0.04855648,143.06,143.04,0.04635091]
[1723713071395,0.04855648,143.06,143.05,3.495]
[1723713073989,0.04855648,143.06,143.04,3.54155091]
[1723713074199,0.04855648,143.06,143.04,0.04635091]
[1723713075796,0.04855648,143.06,143.04,3.54155091]
[1723713076091,0.04855648,143.06,143.04,0.04635091]
[1723713076295,0.04855648,143.06,143.05,3.495]
[1723713077399,0.04855648,143.06,143.04,3.54155091]
[1723713078301,3.54335648,143.06,143.04,0.04635091]
[1723713079002,0.04855648,143.06,143.04,3.54155091]
[1723713079302,0.04855648,143.06,143.04,0.04635091]
[1723713080104,0.04855648,143.06,143.04,3.54155091]
[1723713080601,3.54345648,143.06,143.04,3.54155091]
[1723713081698,3.54345648,143.06,143.04,0.04635091]
[1723713082698,3.495,143.05,143.04,0.04635091]
[1723713086600,3.4955,143.04,143.01,3.4958]
[1723713086797,4.8055,143.04,143.01,3.4958]
[1723713087205,13.43,143.03,142.96,17.85]
[1723713087602,0.04604963,143.01,142.99,3.4964]
[1723713087802,13.47604963,143.01,142.98,0.05041242]
[1723713088200,3.4964,143.0,142.98,0.05041242]
[1723713090110,3.4965,142.99,142.98,0.05041242]
[1723713090305,13.43,143.0,142.93,4.42]
[1723713090614,18.1736,142.98,142.95,3.4974]
[1723713091612,18.21878997,142.98,142.95,3.54391685]
[1723713091911,3.4971,142.97,142.95,0.04651685]
[1723713092307,3.4971,142.97,142.95,3.54401685]
[1723713093307,3.4971,142.97,142.95,0.04651685]
[1723713093609,14.72188997,142.98,142.95,0.04651685]
[1723713093610,21.3472,142.96,142.95,0.04651685]
[1723713095110,3.4979,142.94,142.91,3.4984]
[1723713095315,13.43,142.94,142.86,4.42]
[1723713095814,16.9279,142.94,142.91,3.4984]
[1723713096315,16.97261506,142.94,142.91,3.4984]
[1723713096517,3.498,142.93,142.91,3.4984]
[1723713097319,3.498,142.93,142.9,3.4986]
[1723713098822,17.85,142.92,142.85,13.43]
[1723713099026,19.1412,142.92,142.85,13.43]
[1723713099219,3.4986,142.91,142.88,3.4991]
[1723713099723,4.42,142.9,142.88,3.4991]
[1723713100519,0.05025593,142.91,142.86,13.43]
[1723713100827,0.05025593,142.91,142.88,13.43]
[1723713101322,0.05025593,142.91,142.89,3.4988]
[1723713102116,3.54875593,142.91,142.89,3.4988]
[1723713102317,0.05025593,142.91,142.9,3.4987]
[1723713103733,0.05025593,142.91,142.89,3.4988]
[1723713104327,4.47025593,142.91,142.89,3.4988]
[1723713107123,4.47025593,142.91,142.88,13.43]
[1723713107523,0.05025593,142.91,142.9,3.4987]
[1723713108641,0.05025593,142.91,142.86,13.43]
[1723713109031,3.54885593,142.91,142.88,3.4991]
[1723713111340,3.54885593,142.91,142.89,3.4989]
[1723713113046,3.54885593,142.91,142.83,3.92226974]
[1723713113047,0.05025593,142.91,142.9,3.4987]
[1723713113238,4.47025593,142.91,142.9,3.4987]
[1723713113538,0.05025593,142.91,142.9,3.4987]
[1723713114644,0.05025593,142.91,142.9,16.9287]
[1723713115942,60.716,143.02,142.83,15.34266974]
[1723713115943,4.42,143.08,142.95,13.43]
[1723713116139,13.43,143.06,142.99,13.43]
[1723713116442,3.4951,143.05,142.99,13.43]
[1723713116842,3.4953,143.04,142.98,13.43]
[1723713117143,0.05100997,143.03,143.01,0.04823942]
[1723713117341,0.05100997,143.03,143.01,3.54423942]
[1723713118540,0.05100997,143.03,143.02,3.4958]
[1723713119744,0.05100997,143.03,143.02,37.0658]
[1723713119939,4.42,143.08,143.07,3.4945]
[1723713120140,14.01900209,143.11,143.07,3.4945]
[1723713121140,3.4938,143.1,143.07,3.4945]
[1723713121544,3.53808528,143.1,143.08,0.04529907]
[1723713122346,37.10808528,143.1,143.08,0.04529907]
[1723713124642,3.53808528,143.1,143.08,0.04529907]
[1723713126140,3.4945,143.08,143.02,33.57]
[1723713126344,0.04428528,143.1,143.02,33.57]
[1723713126547,17.52130209,143.11,143.02,33.57]
[1723713126848,3.4942,143.09,143.05,3.4949]
[1723713127450,0.04551481,143.08,143.06,3.54071714]
[1723713127941,0.04551481,143.08,143.06,0.04591714]
[1723713128545,0.04551481,143.08,143.07,3.4945]
[1723713134251,0.04551481,143.08,143.06,0.04591714]
[1723713134252,0.04551481,143.08,143.06,3.54061714]
[1723713135055,3.54001481,143.08,143.06,0.04591714]
[1723713137256,0.04551481,143.08,143.06,3.54061714]
[1723713137659,0.04551481,143.08,143.07,3.4945]
[1723713139059,0.04551481,143.08,143.06,0.04591714]
[1723713139564,0.04551481,143.08,143.07,3.4945]
[1723713144872,0.04551481,143.08,143.06,3.54061714]
[1723713146863,0.04551481,143.08,143.07,3.4945]
[1723713148469,0.04551481,143.08,143.06,3.54061714]
[1723713149771,0.04551481,143.08,143.06,0.04591714]
[1723713150167,13.45551481,143.08,143.06,0.04591714]
[1723713150369,4.42,143.07,143.06,0.04591714]
[1723713150567,3.495,143.06,143.01,13.41]
[1723713150876,3.53446682,143.05,142.96,0.3402]
[1723713151079,4.42,143.07,143.0,13.41]
[1723713151781,3.54355479,143.05,143.02,3.52517585]
[1723713152187,0.04835479,143.05,143.03,3.4955]
[1723713153176,0.04835479,143.05,143.02,0.02947585]
[1723713153577,0.04835479,143.05,143.04,3.4953]
[1723713156387,0.04835479,143.05,143.04,16.9053]
[1723713159686,2.6574,143.11,143.04,13.41]
[1723713159879,2.6574,143.11,143.07,13.41]
[1723713160587,6.151,143.11,143.08,3.4941]
[1723713160783,0.05050934,143.1,143.08,3.5438159]
[1723713161385,0.05050934,143.1,143.09,3.4941]
[1723713164288,0.05050934,143.1,143.08,0.0497159]
[1723713165397,0.05050934,143.1,143.08,3.5440159]
[1723713167992,3.54430934,143.1,143.08,0.0497159]
[1723713168890,3.4941,143.09,143.08,0.0497159]
[1723713169087,69.6428,143.09,142.94,13.41]
[1723713169286,13.41,143.0,142.92,0.3865]
[1723713169493,4.42,142.99,142.96,3.4971]
[1723713169696,4.42,142.99,142.94,13.41]
[1723713169999,4.42,142.99,142.95,3.4974]
[1723713170387,0.04408765,142.98,142.95,3.52551474]
[1723713170596,4.42,142.97,142.95,3.52551474]
[1723713170797,0.04408765,142.98,142.96,3.4972]
[1723713171192,0.04408765,142.98,142.97,13.41]
[1723713171899,0.04408765,142.98,142.97,3.497]
[1723713173493,2.5928,143.09,142.97,37.99]
[1723713173797,3.54454689,143.08,143.01,33.57]
[1723713173987,3.4948,143.07,143.02,3.4956]
[1723713174500,3.4945,143.08,143.03,3.4953]
[1723713174796,3.4945,143.08,143.03,33.57]
[1723713175191,0.04617652,143.06,143.03,33.62110176]
[1723713175798,0.04617652,143.06,143.04,3.4951]
[1723713179697,0.04617652,143.06,143.05,33.57]
[1723713180399,0.04617652,143.06,143.05,37.065]
[1723713180900,4.42,143.11,143.05,33.57]
[1723713181104,1.2659,143.12,143.07,33.57]
[1723713181797,4.7594,143.12,143.09,3.4939]
[1723713182199,4.7594,143.12,143.09,3.54250908]
[1723713182400,4.80642653,143.12,143.09,3.54250908]
[1723713182600,1.31292653,143.12,143.09,3.54250908]
[1723713183002,0.04702653,143.12,143.1,3.4938]
[1723713186800,0.04702653,143.12,143.09,0.04860908]
[1723713186801,0.04702653,143.12,143.11,3.4936]
[1723713187804,0.04702653,143.12,143.11,37.0636]
[1723713188003,1.3263,143.19,143.15,3.4926]
[1723713188213,5.7463,143.19,143.15,3.4926]
[1723713188507,9.2381,143.19,143.15,3.4926]
[1723713189008,4.42,143.19,143.13,33.57]
[1723713189404,2.602,143.21,143.13,33.57]
[1723713189603,0.05166508,143.18,143.17,3.492]
[1723713191008,0.05166508,143.18,143.16,0.05059902]
[1723713191206,38.04166508,143.18,143.08,33.9582]
[1723713191405,3.4924,143.16,143.12,3.4931]
[1723713191802,3.5101998,143.15,143.06,37.14167807]
[1723713192005,4.7184,143.15,143.06,41.56167807]
[1723713192406,4.7184,143.15,143.11,3.4934]
[1723713192602,0.05065847,143.12,143.11,3.4934]
[1723713195407,0.05065847,143.12,143.1,3.4937]
[1723713199116,3.4936,143.11,143.09,0.04684566]
[1723713199515,0.05065847,143.12,143.09,0.04684566]
[1723713200910,3.4937,143.11,143.09,0.04684566]
[1723713201614,3.4937,143.11,143.09,3.54084566]
[1723713202016,3.4937,143.11,143.09,0.04684566]
[1723713204809,4.42,143.11,143.1,3.4938]
[1723713205011,4.42,143.11,143.09,0.04684566]
[1723713205409,4.42,143.11,143.09,3.54074566]
[1723713205911,4.42,143.11,143.1,3.4938]
[1723713206318,0.05065847,143.12,143.09,0.04684566]
[1723713206619,0.05065847,143.12,143.11,3.4936]
[1723713209426,0.05065847,143.12,143.09,0.04684566]
[1723713210514,3.54405847,143.12,143.09,3.54074566]
[1723713218120,0.05065847,143.12,143.09,0.04684566]
[1723713218825,3.54405847,143.12,143.09,3.54084566]
[1723713222630,0.05065847,143.12,143.1,3.4937]
[1723713222838,0.05065847,143.12,143.09,0.04684566]
[1723713223130,3.4938,143.1,143.09,0.04684566]
[1723713224036,7.9138,143.1,143.09,0.04684566]
[1723713225935,4.42,143.1,143.09,0.04684566]
[1723713228038,7.9138,143.1,143.09,0.04684566]
[1723713230240,21.3438,143.1,143.09,0.04684566]
[1723713234532,7.9138,143.1,143.09,0.04684566]
[1723713239540,21.3438,143.1,143.09,0.04684566]
[1723713239846,3.4948,143.06,143.01,13.43]
[1723713240046,3.4948,143.06,143.02,3.4956]
[1723713240250,3.4948,143.06,143.01,13.43]
[1723713240550,3.4946,143.07,143.01,13.43]
[1723713240943,0.05066021,143.05,143.03,0.0509656]
[1723713241243,0.05066021,143.05,143.04,3.4952]
[1723713241744,0.05066021,143.05,143.03,3.5463656]
[1723713242147,0.05066021,143.05,143.03,0.0509656]
[1723713243944,0.05066021,143.05,143.04,3.4953]
[1723713244549,0.05066021,143.05,143.04,16.9253]
[1723713244944,2.6514,143.13,143.04,13.43]
[1723713245145,4.42,143.11,143.09,13.43]
[1723713245543,1.348,143.13,143.09,13.43]
[1723713246250,0.04865575,143.12,143.11,3.4934]
[1723713247946,0.04865575,143.12,143.1,0.04645766]
[1723713248150,13.43,143.11,143.1,0.04645766]
[1723713249849,33.58865575,143.12,143.1,0.04645766]
[1723713250751,3.4936,143.11,143.1,0.04645766]
[1723713251349,37.08205575,143.12,143.1,0.04645766]
[1723713257257,4.42,143.11,143.1,0.04645766]
[1723713260958,7.9136,143.11,143.1,0.04645766]
[1723713261650,34.96874279,143.11,143.1,0.04645766]
[1723713262251,34.96862402,143.11,143.1,0.04645766]
[1723713268256,34.96859755,143.11,143.1,0.04645766]
[1723713269562,34.96859747,143.11,143.1,0.04645766]
[1723713269965,7.9136,143.11,143.1,0.04645766]
[1723713270160,34.96859747,143.11,143.1,0.04645766]
[1723713271460,7.9136,143.11,143.1,0.04645766]
[1723713271861,21.3236,143.11,143.1,0.04645766]
[1723713272963,17.83,143.11,143.1,0.04645766]
[1723713274767,21.3236,143.11,143.1,0.04645766]
[1723713282775,0.04865575,143.12,143.1,0.04645766]